bitfinex/quotes_BTCUSD_20250115
["timestamp","ask_amount","ask_price","bid_price","bid_amount"]
[1736932712492,0.00177973,97479.0,97478.0,0.00166586]
[1736932712740,0.00277973,97479.0,97478.0,0.00166586]
[1736932714211,0.00177973,97479.0,97478.0,0.00166586]
[1736932714518,0.00077973,97479.0,97478.0,0.00166586]
[1736932715314,0.01687204,97479.0,97478.0,0.00166586]
[1736932715520,0.00077973,97479.0,97478.0,0.00166586]
[1736932718235,0.01687256,97479.0,97478.0,0.00166586]
[1736932718985,0.06849427,97479.0,97478.0,0.00166586]
[1736932719768,0.01687256,97479.0,97478.0,0.00166586]
[1736932723232,0.00077973,97479.0,97478.0,0.00166586]
[1736932734900,0.10500665,97479.0,97478.0,0.00166586]
[1736932735122,0.18650665,97479.0,97478.0,0.00166586]
[1736932735325,0.18650665,97479.0,97478.0,0.00177686]
[1736932735729,0.18550665,97479.0,97478.0,0.00177686]
[1736932735926,0.25629177,97479.0,97478.0,0.00177686]
[1736932736559,0.25729177,97479.0,97478.0,0.00177686]
[1736932736946,0.25629177,97479.0,97478.0,0.00177686]
[1736932737110,0.26029177,97479.0,97478.0,0.00177686]
[1736932737510,0.25829177,97479.0,97478.0,0.00177686]
[1736932737749,0.27438491,97479.0,97478.0,0.00177686]
[1736932737985,0.27338491,97479.0,97478.0,0.00177686]
[1736932738409,0.27538491,97479.0,97478.0,0.00177686]
[1736932738744,0.27738491,97479.0,97478.0,0.00177686]
[1736932739947,0.27438491,97479.0,97478.0,0.00177686]
[1736932740469,0.27538491,97479.0,97478.0,0.00177686]
[1736932740664,0.27838491,97479.0,97478.0,0.00177686]
[1736932740921,0.27738491,97479.0,97478.0,0.00177686]
[1736932741223,0.27938491,97479.0,97478.0,0.00177686]
[1736932741435,0.27438491,97479.0,97478.0,0.00177686]
[1736932741633,0.20359979,97479.0,97478.0,0.00177686]
[1736932741779,0.20659979,97479.0,97478.0,0.00177686]
[1736932742811,0.19050665,97479.0,97478.0,0.00177686]
[1736932743020,0.10700665,97479.0,97478.0,0.00177686]
[1736932743364,0.11000665,97479.0,97478.0,0.00177686]
[1736932749224,0.10700665,97479.0,97478.0,0.00177686]
[1736932749600,0.10800665,97479.0,97478.0,0.00177686]
[1736932753572,0.10700665,97479.0,97478.0,0.00177686]
[1736932753772,0.10600665,97479.0,97478.0,0.00177686]
[1736932753971,0.10700665,97479.0,97478.0,0.00177686]
[1736932755275,0.10700665,97479.0,97478.0,0.00095462]
[1736932755721,0.17858577,97479.0,97478.0,0.00095462]
[1736932755879,0.50938577,97479.0,97478.0,0.00095462]
[1736932756237,0.53238577,97479.0,97478.0,0.00095462]
[1736932756439,0.53802577,97479.0,97478.0,0.00095462]
[1736932756741,0.26264665,97479.0,97478.0,0.00095462]
[1736932756948,0.25500665,97479.0,97478.0,0.00095462]
[1736932757087,0.26264665,97479.0,97478.0,0.00095462]
[1736932757291,0.36764665,97479.0,97478.0,0.00195462]
[1736932757494,0.36264665,97479.0,97478.0,0.00095462]
[1736932758050,0.26264665,97479.0,97478.0,0.00095462]
[1736932758469,0.25700665,97479.0,97478.0,0.00095462]
[1736932758673,0.25500665,97479.0,97478.0,0.00095462]
[1736932759019,0.10500665,97479.0,97478.0,0.00095462]
[1736932759231,0.00077973,97479.0,97478.0,0.00095462]
[1736932759435,0.00277973,97479.0,97478.0,0.08255462]
[1736932759638,0.00777973,97479.0,97478.0,0.08255462]
[1736932759880,0.00077973,97479.0,97478.0,0.08255462]
[1736932760384,0.00277973,97479.0,97478.0,0.08255462]
[1736932760858,0.01887236,97479.0,97478.0,0.08255462]
[1736932762228,0.00277973,97479.0,97478.0,0.08255462]
[1736932768859,0.00277973,97479.0,97478.0,0.08244362]
[1736932775596,0.01887212,97479.0,97478.0,0.08244362]
[1736932777608,0.01876112,97479.0,97478.0,0.08244362]
[1736932778937,0.01876112,97479.0,97478.0,0.00084362]
[1736932781064,0.12298804,97479.0,97478.0,0.00084362]
[1736932782471,0.28386867,97479.0,97478.0,0.00084362]
[1736932782696,0.34687628,97479.0,97478.0,0.00084362]
[1736932783259,0.33599565,97479.0,97478.0,0.00084362]
[1736932783903,0.33499565,97479.0,97478.0,0.00084362]
[1736932784137,0.33399565,97479.0,97478.0,0.00084362]
[1736932784336,0.33599565,97479.0,97478.0,0.00084362]
[1736932784575,0.33699565,97479.0,97478.0,0.00084362]
[1736932784806,0.34199565,97479.0,97478.0,0.00084362]
[1736932785008,0.33899565,97479.0,97478.0,0.00084362]
[1736932785218,0.33999565,97479.0,97478.0,0.00084362]
[1736932786186,0.35808935,97479.0,97478.0,0.00084362]
[1736932786344,0.34199565,97479.0,97478.0,0.00084362]
[1736932786991,0.42850486,97479.0,97478.0,0.00084362]
[1736932787395,0.34199565,97479.0,97478.0,0.00084362]
[1736932789554,0.35808951,97479.0,97478.0,0.00084362]
[1736932792500,0.45808951,97479.0,97478.0,0.00084362]
[1736932793286,0.44199565,97479.0,97478.0,0.00084362]
[1736932796499,0.44099565,97479.0,97478.0,0.00084362]
[1736932796753,0.43399565,97479.0,97478.0,0.00084362]
[1736932796903,0.43499565,97479.0,97478.0,0.00084362]
[1736932797112,0.43699565,97479.0,97478.0,0.00084362]
[1736932797743,0.54122257,97479.0,97478.0,0.00084362]
[1736932798957,0.55731681,97479.0,97478.0,0.00084362]
[1736932799590,0.54022257,97479.0,97478.0,0.00084362]
[1736932799962,0.54322257,97479.0,97478.0,0.00084362]
[1736932800347,0.53822257,97479.0,97478.0,0.00084362]
[1736932800595,0.54422257,97479.0,97478.0,0.00084362]
[1736932800762,0.54722257,97479.0,97478.0,0.00084362]
[1736932800982,0.54122257,97479.0,97478.0,0.00084362]
[1736932801178,0.54722257,97479.0,97478.0,0.00084362]
[1736932801772,0.44299565,97479.0,97478.0,0.00084362]
[1736932803257,0.46599565,97479.0,97478.0,0.00084362]
[1736932803656,0.56599565,97479.0,97478.0,0.00084362]
[1736932807288,0.1,97471.0,97454.0,0.06195204]
[1736932807490,0.205222,97455.0,97454.0,0.06195204]
[1736932808894,0.205222,97455.0,97454.0,0.06595204]
[1736932810225,0.205222,97455.0,97454.0,0.06695204]
[1736932810818,0.205222,97455.0,97454.0,0.06595204]
[1736932811189,0.205222,97455.0,97454.0,0.06195204]
[1736932811606,0.205222,97455.0,97454.0,0.06495204]
[1736932812265,0.20521,97461.0,97454.0,0.06595204]
[1736932812438,0.205207,97463.0,97455.0,0.1264]
[1736932812639,0.205207,97463.0,97456.0,0.0787]
[1736932815115,0.205207,97463.0,97457.0,0.01924509]
[1736932815290,0.205207,97463.0,97458.0,0.0787]
[1736932817644,0.20508353,97463.0,97458.0,0.0787]
[1736932817850,0.41029053,97463.0,97458.0,0.0787]
[1736932818422,0.20508353,97463.0,97458.0,0.0787]
[1736932818639,0.205201,97466.0,97458.0,0.0787]
[1736932818860,0.20521,97461.0,97458.0,0.0787]
[1736932819355,0.41042,97461.0,97458.0,0.0787]
[1736932820066,0.20521,97461.0,97458.0,0.0787]
[1736932820395,0.41042,97461.0,97458.0,0.0787]
[1736932820568,0.20521,97461.0,97458.0,0.0797]
[1736932823298,0.20521,97461.0,97459.0,0.00962561]
[1736932824109,0.20521,97461.0,97460.0,0.00962561]
[1736932826229,0.41042,97461.0,97458.0,0.0787]
[1736932826407,0.20521,97461.0,97459.0,0.001]
[1736932826649,0.20521,97461.0,97458.0,0.0787]
[1736932826825,0.41042,97461.0,97458.0,0.0787]
[1736932827070,0.20521,97461.0,97458.0,0.0787]
[1736932827237,0.20521,97461.0,97460.0,0.001]
[1736932827453,0.20521,97461.0,97458.0,0.0787]
[1736932827955,0.20521,97461.0,97459.0,0.001]
[1736932829025,0.20521,97461.0,97458.0,0.0787]
[1736932829426,0.20521,97461.0,97460.0,0.001]
[1736932829679,0.20521,97461.0,97458.0,0.0787]
[1736932830091,0.20521,97461.0,97459.0,0.001]
[1736932830283,0.20521,97461.0,97458.0,0.0787]
[1736932830674,0.20521,97461.0,97460.0,0.001]
[1736932830868,0.20521,97461.0,97458.0,0.0787]
[1736932832544,0.20521,97461.0,97458.0,0.0797]
[1736932833079,0.41042,97461.0,97458.0,0.0797]
[1736932833600,0.20521,97461.0,97458.0,0.0797]
[1736932836075,0.41042,97461.0,97458.0,0.0797]
[1736932837154,0.20521,97461.0,97458.0,0.0797]
[1736932838843,0.41042,97461.0,97458.0,0.0797]
[1736932839061,0.41042,97461.0,97458.0,0.0814934]
[1736932839840,0.41042,97461.0,97458.0,0.0027934]
[1736932841341,0.20521,97461.0,97458.0,0.0027934]
[1736932841546,0.20521,97461.0,97458.0,0.0951151]
[1736932845879,0.20521,97461.0,97459.0,0.00963215]
[1736932846283,0.22130416,97461.0,97459.0,0.00963215]
[1736932846617,0.20521,97461.0,97459.0,0.00963215]
[1736932846820,0.20521,97461.0,97459.0,0.10195385]
[1736932847032,0.20521,97461.0,97459.0,0.10395385]
[1736932847237,0.20521,97461.0,97459.0,0.0953217]
[1736932848528,0.000854,97463.0,97459.0,0.0953217]
[1736932849533,0.000854,97463.0,97459.0,0.002]
[1736932849918,0.000854,97463.0,97459.0,0.001]
[1736932850124,0.000854,97463.0,97459.0,0.002]
[1736932850444,0.000854,97463.0,97462.0,0.0923217]
[1736932850874,0.000854,97463.0,97462.0,0.1725217]
[1736932851479,0.000854,97463.0,97462.0,0.0802]
[1736932851880,0.000854,97463.0,97462.0,0.08983078]
[1736932852302,0.000854,97463.0,97462.0,0.09083078]
[1736932852718,0.000854,97463.0,97462.0,0.09183078]
[1736932854047,0.000854,97463.0,97462.0,0.0995334]
[1736932854696,0.000854,97463.0,97462.0,0.10055935]
[1736932854905,0.000854,97463.0,97462.0,0.14865935]
[1736932855328,0.000854,97463.0,97462.0,0.1486593]
[1736932855531,0.01694617,97463.0,97462.0,0.1486593]
[1736932855865,0.000854,97463.0,97462.0,0.1486593]
[1736932857607,0.000854,97463.0,97462.0,0.37958719]
[1736932857765,0.000854,97463.0,97462.0,0.37756129]
[1736932857972,0.000854,97463.0,97462.0,0.37656129]
[1736932858183,0.000854,97463.0,97462.0,0.37956129]
[1736932858571,0.000854,97463.0,97462.0,0.1486334]
[1736932858726,0.000854,97463.0,97462.0,0.14665922]
[1736932858910,0.0169455,97463.0,97462.0,0.15065922]
[1736932859203,0.0169455,97463.0,97462.0,0.15665922]
[1736932859401,0.0169455,97463.0,97462.0,0.15065922]
[1736932859805,0.0179455,97463.0,97462.0,0.15865922]
[1736932860027,0.0179455,97463.0,97462.0,0.1576334]
[1736932861528,0.0179455,97463.0,97462.0,0.0293334]
[1736932862914,0.001854,97463.0,97462.0,0.0253334]
[1736932863332,0.000854,97463.0,97462.0,0.0173334]
[1736932863535,0.000854,97463.0,97462.0,0.20191112]
[1736932863708,0.000854,97463.0,97462.0,0.20491112]
[1736932863920,0.000854,97463.0,97462.0,0.20191112]
[1736932864377,0.000854,97463.0,97462.0,0.20491112]
[1736932864752,0.01694671,97463.0,97462.0,0.20491112]
[1736932865355,0.01694671,97463.0,97462.0,0.0223334]
[1736932865565,0.01694671,97463.0,97462.0,0.0193334]
[1736932865764,0.01694671,97463.0,97462.0,0.0173334]
[1736932865964,0.01794671,97463.0,97462.0,0.0253334]
[1736932866195,0.001854,97463.0,97462.0,0.0293334]
[1736932868725,0.001854,97463.0,97462.0,0.02163078]
[1736932868927,0.001854,97463.0,97462.0,0.012]
[1736932872086,0.01794745,97463.0,97462.0,0.012]
[1736932873495,0.001854,97463.0,97462.0,0.012]
[1736932875007,0.001854,97463.0,97462.0,0.02161535]
[1736932876400,0.01794734,97463.0,97462.0,0.02161535]
[1736932876809,0.001854,97463.0,97462.0,0.02161535]
[1736932877130,0.01794751,97463.0,97462.0,0.02161535]
[1736932878572,0.01238876,97463.0,97462.0,0.02161535]
[1736932878758,0.205201,97466.0,97462.0,0.02161535]
[1736932879947,0.410402,97466.0,97463.0,0.00961535]
[1736932880704,0.411402,97466.0,97463.0,0.00961535]
[1736932880906,0.410402,97466.0,97464.0,0.00961535]
[1736932882014,0.410402,97466.0,97461.0,0.0017934]
[1736932882561,0.205203,97464.0,97463.0,0.001]
[1736932882767,0.205203,97464.0,97461.0,0.0017934]
[1736932882971,0.410407,97464.0,97461.0,0.0017934]
[1736932883660,0.410407,97464.0,97461.0,0.0037934]
[1736932883868,0.42650113,97464.0,97461.0,0.0017934]
[1736932884270,0.42650113,97464.0,97461.0,0.0047934]
[1736932884978,0.42650113,97464.0,97461.0,0.0057934]
[1736932885181,0.205208,97462.0,97461.0,0.0057934]
[1736932885402,0.205208,97462.0,97461.0,0.0047934]
[1736932885962,0.205208,97462.0,97461.0,0.0037934]
[1736932886950,0.205208,97462.0,97461.0,0.0057934]
[1736932887148,0.205208,97462.0,97461.0,0.0017934]
[1736932887450,0.205208,97462.0,97461.0,0.0037934]
[1736932887669,0.01609431,97462.0,97461.0,0.0037934]
[1736932887815,0.01609431,97462.0,97461.0,0.0017934]
[1736932888198,0.01609431,97462.0,97461.0,0.0037934]
[1736932888624,0.01609431,97462.0,97461.0,0.0057934]
[1736932889962,0.12032123,97462.0,97461.0,0.0057934]
[1736932890800,0.12032123,97462.0,97461.0,0.0037934]
[1736932890981,0.12032123,97462.0,97461.0,0.0047934]
[1736932891427,0.12032123,97462.0,97461.0,0.0037934]
[1736932891858,0.12032123,97462.0,97461.0,0.0027934]
[1736932892217,0.12032123,97462.0,97461.0,0.0017934]
[1736932892380,0.13051454,97462.0,97461.0,0.0017934]
[1736932892892,0.19268149,97462.0,97461.0,0.0017934]
[1736932893687,0.19268149,97462.0,97461.0,0.0027934]
[1736932893899,0.17658718,97462.0,97461.0,0.0027934]
[1736932894323,0.11442023,97462.0,97461.0,0.0017934]
[1736932895265,0.11542023,97462.0,97461.0,0.0017934]
[1736932895475,0.11442023,97462.0,97461.0,0.0017934]
[1736932895891,0.11542023,97462.0,97461.0,0.0017934]
[1736932897723,0.11542023,97462.0,97461.0,0.0027934]
[1736932898297,0.13151545,97462.0,97461.0,0.0027934]
[1736932899720,0.13051545,97462.0,97461.0,0.0027934]
[1736932900153,0.13151545,97462.0,97461.0,0.0017934]
[1736932900467,0.13151545,97462.0,97461.0,0.0027934]
[1736932900679,0.01709522,97462.0,97461.0,0.0027934]
[1736932902078,0.001,97462.0,97461.0,0.0027934]
[1736932903515,0.001,97462.0,97461.0,0.0017934]
[1736932903721,0.001,97462.0,97461.0,0.0037934]
[1736932904125,0.001,97462.0,97461.0,0.01341256]
[1736932904348,0.000854,97463.0,97461.0,0.01341256]
[1736932904714,0.000854,97463.0,97461.0,0.01741256]
[1736932905270,0.01694807,97463.0,97462.0,0.00961916]
[1736932905467,0.000854,97463.0,97462.0,0.00961916]
[1736932906223,0.000854,97463.0,97462.0,0.10190707]
[1736932907603,0.000854,97463.0,97462.0,0.00961916]
[1736932908147,0.10508092,97463.0,97462.0,0.002]
[1736932908354,0.10508092,97463.0,97462.0,0.005]
[1736932910192,0.10508092,97463.0,97462.0,0.002]
[1736932911273,0.205208,97462.0,97461.0,0.0017934]
[1736932911800,0.33029258,97462.0,97461.0,0.0017934]
[1736932912042,0.55939258,97462.0,97461.0,0.0017934]
[1736932912251,0.65939258,97462.0,97461.0,0.0017934]
[1736932913583,0.66239258,97462.0,97461.0,0.0017934]
[1736932914044,0.65939258,97462.0,97461.0,0.0017934]
[1736932915446,0.66139258,97462.0,97461.0,0.0017934]
[1736932915859,0.66439258,97462.0,97461.0,0.0017934]
[1736932916060,0.54153492,97462.0,97461.0,0.0017934]
[1736932916236,0.45943492,97462.0,97461.0,0.0017934]
[1736932916661,0.46243492,97462.0,97461.0,0.0017934]
[1736932917069,0.358208,97462.0,97461.0,0.0017934]
[1736932917459,0.37430338,97462.0,97461.0,0.0017934]
[1736932917682,0.22430338,97462.0,97461.0,0.0017934]
[1736932917857,0.01609538,97462.0,97461.0,0.0017934]
[1736932918260,0.000854,97463.0,97461.0,0.0017934]
[1736932919376,0.000854,97463.0,97461.0,0.0027934]
[1736932919575,0.01694815,97463.0,97461.0,0.0027934]
[1736932919780,0.01694815,97463.0,97461.0,0.0017934]
[1736932919935,0.01694815,97463.0,97461.0,0.0027934]
[1736932920141,0.01694815,97463.0,97461.0,0.0037934]
[1736932920563,0.205208,97462.0,97461.0,0.0037934]
[1736932920969,0.205208,97462.0,97461.0,0.0027934]
[1736932921143,0.01694815,97463.0,97461.0,0.0027934]
[1736932921324,0.01694815,97463.0,97461.0,0.0037934]
[1736932921732,0.01694815,97463.0,97461.0,0.0027934]
[1736932922590,0.01694815,97463.0,97462.0,0.0832]
[1736932923229,0.000854,97463.0,97462.0,0.0832]
[1736932923453,0.000854,97463.0,97462.0,0.09281729]
[1736932924279,0.000854,97463.0,97462.0,0.09381729]
[1736932924504,0.000854,97463.0,97462.0,0.33583398]
[1736932924706,0.000854,97463.0,97462.0,0.334808]
[1736932925112,0.000854,97463.0,97462.0,0.3434998]
[1736932925534,0.000854,97463.0,97462.0,0.52707752]
[1736932925944,0.000854,97463.0,97462.0,0.32286952]
[1736932926504,0.000854,97463.0,97462.0,0.1372918]
[1736932926711,0.000854,97463.0,97462.0,0.14790325]
[1736932927717,0.000854,97463.0,97462.0,0.02330325]
[1736932927917,0.01694679,97463.0,97462.0,0.02330325]
[1736932928473,0.01694679,97463.0,97462.0,0.006]
[1736932929577,0.000854,97463.0,97462.0,0.006]
[1736932930753,0.000854,97463.0,97462.0,0.002]
[1736932931217,0.000854,97463.0,97462.0,0.004]
[1736932932605,0.000854,97463.0,97462.0,0.002]
[1736932933065,0.000854,97463.0,97462.0,0.003]
[1736932933476,0.000854,97463.0,97461.0,0.0017934]
[1736932933683,0.205208,97462.0,97461.0,0.0017934]
[1736932934997,0.205208,97462.0,97461.0,0.0027934]
[1736932935405,0.205208,97462.0,97461.0,0.0017934]
[1736932935835,0.205208,97462.0,97461.0,0.0027934]
[1736932936582,0.205208,97462.0,97461.0,0.0017934]
[1736932936767,0.205208,97462.0,97461.0,0.0047934]
[1736932937135,0.205208,97462.0,97461.0,0.0027934]
[1736932937496,0.205208,97462.0,97461.0,0.0047934]
[1736932940146,0.20321093,97462.0,97461.0,0.0047934]
[1736932942996,0.21930562,97462.0,97461.0,0.0047934]
[1736932943231,0.20321093,97462.0,97461.0,0.0047934]
[1736932943467,0.000854,97463.0,97461.0,0.0861934]
[1736932944574,0.000854,97463.0,97461.0,0.17849783]
[1736932944818,0.000854,97463.0,97461.0,0.17649783]
[1736932944967,0.000854,97463.0,97461.0,0.17549783]
[1736932945145,0.000854,97463.0,97461.0,0.17649783]
[1736932945354,0.000854,97463.0,97461.0,0.0851934]
[1736932948425,0.000854,97463.0,97462.0,0.00962021]
[1736932949166,0.00032418,97463.0,97462.0,0.00962021]
[1736932950018,0.00032418,97463.0,97462.0,0.01062021]
[1736932950220,0.00032418,97463.0,97462.0,0.01162021]
[1736932959726,0.20434494,97467.0,97462.0,0.01162021]
[1736932959922,0.20434494,97467.0,97462.0,0.0134134]
[1736932960965,0.20434494,97467.0,97463.0,0.00962021]
[1736932961916,0.20434494,97467.0,97464.0,0.00962021]
[1736932962837,0.20422145,97467.0,97464.0,0.00962021]
[1736932963211,0.20422145,97467.0,97464.0,0.001]
[1736932964434,0.20422145,97467.0,97463.0,0.09230443]
[1736932964808,0.20422145,97467.0,97464.0,0.001]
[1736932965271,0.20422145,97467.0,97463.0,0.09230443]
[1736932965647,0.20422145,97467.0,97463.0,0.09330443]
[1736932965853,0.20422145,97467.0,97464.0,0.09230443]
[1736932966068,0.10422692,97466.0,97464.0,0.09230443]
[1736932966493,0.205201,97465.0,97464.0,0.09230443]
[1736932966677,0.30942792,97465.0,97464.0,0.09230443]
[1736932967288,0.30942792,97465.0,97462.0,0.00179319]
[1736932967468,0.205206,97463.0,97462.0,0.00179319]
[1736932968718,0.205206,97463.0,97462.0,0.00379319]
[1736932969841,0.20016398,97463.0,97462.0,0.00379319]
[1736932970164,0.20016398,97463.0,97462.0,0.00579319]
[1736932974989,0.3043909,97463.0,97462.0,0.00579319]
[1736932975195,0.3849909,97463.0,97462.0,0.00579319]
[1736932976730,0.3043909,97463.0,97462.0,0.00579319]
[1736932984713,0.3052448,97463.0,97462.0,0.00579319]
[1736932987960,0.12117543,97463.0,97462.0,0.00579319]
[1736932992477,0.10508082,97463.0,97462.0,0.00579319]
[1736932992895,0.12117523,97463.0,97462.0,0.00579319]
[1736932993095,0.10508082,97463.0,97462.0,0.00579319]
[1736933002492,0.35829348,97463.0,97462.0,0.00579319]
[1736933002838,0.53569348,97463.0,97462.0,0.00579319]
[1736933003944,0.53569348,97463.0,97462.0,0.00379319]
[1736933004151,0.53769348,97463.0,97462.0,0.00379319]
[1736933004719,0.53569348,97463.0,97462.0,0.00379319]
[1736933004924,0.53569348,97463.0,97462.0,0.00179319]
[1736933005144,0.55378937,97463.0,97462.0,0.00179319]
[1736933005652,0.54469348,97463.0,97462.0,0.00279319]
[1736933006054,0.53769348,97463.0,97462.0,0.00179319]
[1736933006840,0.54469348,97463.0,97462.0,0.00279319]
[1736933008269,0.56078959,97463.0,97462.0,0.00279319]
[1736933008494,0.54269348,97463.0,97462.0,0.00279319]
[1736933008827,0.53569348,97463.0,97462.0,0.00179319]
[1736933009031,0.54269348,97463.0,97462.0,0.00279319]
[1736933010010,0.54469348,97463.0,97462.0,0.00279319]
[1736933011638,0.56078972,97463.0,97462.0,0.00279319]
[1736933013519,0.46448082,97463.0,97462.0,0.00279319]
[1736933013718,0.26408082,97463.0,97462.0,0.00279319]
[1736933026102,0.28017632,97463.0,97462.0,0.00279319]
[1736933029569,0.30317632,97463.0,97462.0,0.00279319]
[1736933029752,0.30881632,97463.0,97462.0,0.00279319]
[1736933030245,0.41304324,97463.0,97462.0,0.00279319]
[1736933034148,0.30881632,97463.0,97462.0,0.00279319]
[1736933034563,0.28581632,97463.0,97462.0,0.00279319]
[1736933034764,0.28017632,97463.0,97462.0,0.00279319]
[1736933042256,0.26408082,97463.0,97462.0,0.00279319]
[1736933042622,0.023,97462.0,97454.0,9.9e-07]
[1736933042830,0.1,97449.0,97442.0,0.00179319]
[1736933043060,0.173,97454.0,97436.0,0.18459435]
[1736933043061,0.373,97440.0,97439.0,0.07932554]
[1736933043257,1.35004357,97440.0,97439.0,0.0076521]
[1736933043419,0.35,97437.0,97436.0,0.09192751]
[1736933043617,2.01334292,97437.0,97436.0,0.08863685]
[1736933043826,0.705588,97424.0,97423.0,9.8e-07]
[1736933044066,0.80981492,97424.0,97423.0,9.8e-07]
[1736933044302,0.80981492,97424.0,97423.0,7.5e-07]
[1736933044683,1.13961492,97424.0,97423.0,7.5e-07]
[1736933044902,0.205332,97403.0,97402.0,0.08863685]
[1736933045105,0.52926412,97403.0,97402.0,0.08868619]
[1736933045302,0.52926412,97403.0,97402.0,4.934e-05]
[1736933046250,0.53326412,97403.0,97402.0,4.934e-05]
[1736933046385,0.52926412,97403.0,97402.0,4.934e-05]
[1736933048012,0.53426412,97403.0,97402.0,0.00104934]
[1736933048460,0.53526412,97403.0,97402.0,0.00104934]
[1736933048811,0.54543114,97403.0,97402.0,0.00104934]
[1736933049071,0.72443114,97403.0,97402.0,0.00104934]
[1736933052350,0.82443114,97403.0,97402.0,0.00104934]
[1736933053347,0.205389,97376.0,97375.0,0.04465701]
[1736933053540,0.205389,97376.0,97375.0,0.04470639]
[1736933054514,0.206389,97376.0,97375.0,0.05370639]
[1736933055944,0.001,97376.0,97375.0,0.05370639]
[1736933064441,0.206389,97376.0,97375.0,0.05370639]
[1736933064639,0.2475658,97376.0,97375.0,0.00904938]
[1736933065381,0.2465658,97376.0,97375.0,0.00304938]
[1736933065583,0.35079272,97376.0,97375.0,0.00304938]
[1736933065714,0.35079272,97376.0,97375.0,0.00504938]
[1736933065922,0.35079272,97376.0,97375.0,0.00304938]
[1736933066120,0.35079272,97376.0,97375.0,4.938e-05]
[1736933066326,0.35079272,97376.0,97375.0,0.00304938]
[1736933066722,0.35079272,97376.0,97375.0,0.00104938]
[1736933066954,0.35079272,97376.0,97375.0,4.938e-05]
[1736933067300,0.35079272,97376.0,97375.0,0.00104938]
[1736933068156,0.35079272,97376.0,97375.0,0.00190398]
[1736933068362,0.35258738,97376.0,97375.0,0.00190398]
[1736933069108,0.35258738,97376.0,97375.0,0.00090398]
[1736933069286,0.35258738,97376.0,97375.0,0.00190398]
[1736933069687,0.35258738,97376.0,97375.0,0.00290398]
[1736933071575,0.37558738,97376.0,97375.0,0.00290398]
[1736933071784,0.52558738,97376.0,97375.0,0.00290398]
[1736933072171,0.55564455,97376.0,97375.0,0.00290398]
[1736933072563,0.52558738,97376.0,97375.0,0.00190398]
[1736933072907,0.52658738,97376.0,97375.0,0.00190398]
[1736933073341,0.52558738,97376.0,97375.0,0.00090398]
[1736933073550,0.60348738,97376.0,97375.0,0.00090398]
[1736933073760,0.52658738,97376.0,97375.0,0.00090398]
[1736933075806,0.52558738,97376.0,97375.0,0.00090398]
[1736933076500,0.52658738,97376.0,97375.0,0.00090398]
[1736933076959,0.52558738,97376.0,97375.0,0.00090398]
[1736933077176,0.52858738,97376.0,97375.0,0.00090398]
[1736933078638,0.62858738,97376.0,97375.0,0.00090398]
[1736933079045,0.62558738,97376.0,97375.0,0.00090398]
[1736933079316,0.65564455,97376.0,97375.0,0.00090398]
[1736933079487,0.66428455,97376.0,97375.0,0.00090398]
[1736933079741,0.66128455,97376.0,97375.0,0.00090398]
[1736933080098,0.66428455,97376.0,97375.0,0.00090398]
[1736933082027,0.6849395,97376.0,97375.0,0.00090398]
[1736933084068,0.7849395,97376.0,97375.0,0.00090398]
[1736933084431,0.7859395,97376.0,97375.0,0.00090398]
[1736933085242,0.1,97371.0,97347.0,0.06809898]
[1736933085464,0.228448,97348.0,97347.0,0.06816491]
[1736933087315,0.229448,97348.0,97347.0,0.07116491]
[1736933087897,0.229448,97348.0,97347.0,0.07416491]
[1736933091370,0.229448,97348.0,97347.0,0.07501981]
[1736933091708,0.2312433,97348.0,97347.0,0.07501981]
[1736933091911,0.27594107,97348.0,97347.0,0.07501981]
[1736933093355,0.2312433,97348.0,97347.0,0.07501981]
[1736933097609,0.33547022,97348.0,97347.0,0.00692083]
[1736933099360,0.33447022,97348.0,97347.0,0.00392083]
[1736933099532,0.33547022,97348.0,97347.0,0.00392083]
[1736933100045,0.48447022,97348.0,97347.0,0.00092083]
[1736933100385,0.58969714,97348.0,97347.0,0.00092083]
[1736933100805,0.61975431,97348.0,97347.0,0.00092083]
[1736933101216,0.58969714,97348.0,97347.0,0.00092083]
[1736933101715,0.61975431,97348.0,97347.0,0.00092083]
[1736933102063,0.58969714,97348.0,97347.0,0.00092083]
[1736933103874,0.205494,97327.0,97324.0,0.12147481]
[1736933104236,0.228497,97325.0,97324.0,0.00049266]
[1736933104443,0.33272392,97325.0,97324.0,0.00049266]
[1736933104858,0.48836392,97325.0,97324.0,0.00049266]
[1736933105068,0.74872109,97325.0,97324.0,0.00049266]
[1736933105274,0.74859745,97325.0,97324.0,0.00049266]
[1736933105479,0.85282437,97325.0,97324.0,0.00049266]
[1736933105588,0.85282437,97325.0,97316.0,0.0076947]
[1736933105589,0.355513,97317.0,97316.0,0.0076947]
[1736933105795,0.51279709,97317.0,97316.0,0.00774407]
[1736933105995,0.51279709,97317.0,97316.0,4.937e-05]
[1736933106563,0.82665094,97317.0,97316.0,4.937e-05]
[1736933106736,0.93087786,97317.0,97316.0,4.937e-05]
[1736933107139,0.90152401,97317.0,97316.0,4.937e-05]
[1736933107673,0.93087786,97317.0,97316.0,4.937e-05]
[1736933107863,0.93887786,97317.0,97316.0,4.937e-05]
[1736933108019,0.91052401,97317.0,97316.0,4.937e-05]
[1736933108220,0.20558,97286.0,97283.0,0.0038232]
[1736933108413,0.10422692,97285.0,97283.0,0.00313662]
[1736933108769,0.023,97284.0,97283.0,0.00313662]
[1736933108966,0.12722692,97284.0,97283.0,0.00313662]
[1736933109582,0.33280992,97284.0,97283.0,0.00313662]
[1736933109784,0.33280992,97284.0,97283.0,0.00513662]
[1736933110242,0.40720601,97284.0,97283.0,0.00413662]
[1736933111038,0.40720601,97284.0,97283.0,0.00313662]
[1736933112568,0.33280992,97284.0,97283.0,0.00313662]
[1736933112941,0.023,97284.0,97283.0,0.08153662]
[1736933113142,0.09739172,97300.0,97284.0,0.0499]
[1736933113341,0.205562,97294.0,97285.0,0.00364067]
[1736933113544,0.12722692,97293.0,97285.0,0.00364067]
[1736933113749,0.023,97291.0,97285.0,0.00364067]
[1736933113963,0.023,97289.0,97285.0,0.00364067]
[1736933114273,0.023,97287.0,97285.0,0.00364067]
[1736933114446,0.1,97282.0,97261.0,0.3257]
[1736933114630,0.1,97282.0,97261.0,0.32581158]
[1736933115224,0.1,97282.0,97271.0,0.205609]
[1736933115653,0.1,97282.0,97268.0,0.205616]
[1736933115881,0.1,97276.0,97268.0,0.205616]
[1736933117144,0.1,97276.0,97268.0,0.003]
[1736933117565,0.1,97276.0,97269.0,0.0784]
[1736933117958,0.101,97276.0,97270.0,0.205613]
[1736933119609,0.1,97276.0,97270.0,0.205613]
[1736933120536,0.101,97276.0,97270.0,0.209613]
[1736933120733,0.1,97276.0,97270.0,0.208613]
[1736933120938,0.1,97276.0,97269.0,0.0784]